[Event "Late-Titled-Tuesday-Blitz-May-07-2024"]
[Site "Chess.com"]
[Date "2024.05.07"]
[Round "2"]
[White "Zura_19"]
[Black "Durarbayli"]
[Result "0-1"]
[WhiteElo "2625"]
[BlackElo "2951"]
[TimeControl "180+1"]
[EndTime "14:18:45 PDT"]
[Termination "Durarbayli won on time"]

1. d4 {[%clk 0:02:58.5]} 1... Nf6 {[%clk 0:02:56.6]} 2. Bf4 {[%clk 0:02:57.9]}
2... c5 {[%clk 0:02:56.1]} 3. d5 {[%clk 0:02:56.1]} 3... Qb6 {[%clk 0:02:53]} 4.
Nc3 {[%clk 0:02:56.3]} 4... d6 {[%clk 0:02:48]} 5. e4 {[%clk 0:02:55.8]} 5... g6
{[%clk 0:02:31.6]} 6. Bd2 {[%clk 0:02:36.6]} 6... Bg7 {[%clk 0:02:29.3]} 7. f4
{[%clk 0:02:36.9]} 7... O-O {[%clk 0:02:26.9]} 8. Nf3 {[%clk 0:02:36.4]} 8...
Bg4 {[%clk 0:02:23.1]} 9. a4 {[%clk 0:02:32.2]} 9... Na6 {[%clk 0:01:57.6]} 10.
Bc4 {[%clk 0:01:59.5]} 10... Nb4 {[%clk 0:01:33.2]} 11. O-O {[%clk 0:01:54.2]}
11... a5 {[%clk 0:01:28.1]} 12. Rc1 {[%clk 0:01:48.1]} 12... e6 {[%clk
0:01:24.4]} 13. dxe6 {[%clk 0:01:33.3]} 13... Bxe6 {[%clk 0:01:23.9]} 14. Bb5
{[%clk 0:01:24.5]} 14... d5 {[%clk 0:01:13.1]} 15. f5 {[%clk 0:01:08.7]} 15...
gxf5 {[%clk 0:01:06.2]} 16. exd5 {[%clk 0:01:08.8]} 16... Nbxd5 {[%clk
0:01:04.1]} 17. Nh4 {[%clk 0:01:00.5]} 17... c4+ {[%clk 0:00:42.5]} 18. Kh1
{[%clk 0:01:00.3]} 18... Nxc3 {[%clk 0:00:42.9]} 19. Bxc3 {[%clk 0:00:57.9]}
19... Ne4 {[%clk 0:00:42.8]} 20. Bxg7 {[%clk 0:00:48.4]} 20... Kxg7 {[%clk
0:00:43.7]} 21. Qf3 {[%clk 0:00:36.4]} 21... Kh8 {[%clk 0:00:25.3]} 22. Nxf5
{[%clk 0:00:35.3]} 22... Bxf5 {[%clk 0:00:08.4]} 23. Qxf5 {[%clk 0:00:35.3]}
23... Qe6 {[%clk 0:00:07.3]} 24. Qf4 {[%clk 0:00:17.7]} 24... f5 {[%clk
0:00:06.5]} 25. b3 {[%clk 0:00:16.9]} 25... c3 {[%clk 0:00:05.8]} 26. Bc4 {[%clk
0:00:16.2]} 26... Qf6 {[%clk 0:00:05.2]} 27. Rcd1 {[%clk 0:00:12.1]} 27... Nd2
{[%clk 0:00:04.5]} 28. Rfe1 {[%clk 0:00:12]} 28... Rae8 {[%clk 0:00:04.1]} 29.
Re3 {[%clk 0:00:08.1]} 29... Re4 {[%clk 0:00:04.1]} 30. Qf2 {[%clk 0:00:04.7]}
30... Qe7 {[%clk 0:00:03.2]} 31. Rxe4 {[%clk 0:00:02.7]} 31... fxe4 {[%clk
0:00:04.1]} 32. Qe3 {[%clk 0:00:02.4]} 32... Qe5 {[%clk 0:00:03.8]} 33. Re1
{[%clk 0:00:01.7]} 33... Rf4 {[%clk 0:00:03.1]} 34. g3 {[%clk 0:00:02.2]} 34...
Rf3 {[%clk 0:00:03]} 35. Qb6 {[%clk 0:00:01.6]} 35... Qf6 {[%clk 0:00:02.8]} 36.
Qxb7 {[%clk 0:00:01.5]} 36... Qf8 {[%clk 0:00:02.4]} 37. Qd5 {[%clk 0:00:00.8]}
37... Rf5 {[%clk 0:00:02.2]} 38. Qd4+ {[%clk 0:00:01.2]} 38... Qf6 {[%clk
0:00:02.9]} 39. Qxf6+ {[%clk 0:00:01.3]} 39... Rxf6 {[%clk 0:00:02.9]} 40. Kg2
{[%clk 0:00:02.2]} 40... Kg7 {[%clk 0:00:02.9]} 41. Bd5 {[%clk 0:00:02.6]} 41...
Nf3 {[%clk 0:00:02.5]} 42. Re3 {[%clk 0:00:02.2]} 42... Nd4 {[%clk 0:00:02.1]}
43. Bxe4 {[%clk 0:00:02.8]} 43... Re6 {[%clk 0:00:02]} 44. Kf2 {[%clk
0:00:02.1]} 44... Rf6+ {[%clk 0:00:02.5]} 45. Ke1 {[%clk 0:00:02.3]} 45... Re6
{[%clk 0:00:03.4]} 46. Kd1 {[%clk 0:00:02.6]} 46... Rf6 {[%clk 0:00:03.5]} 47.
Re1 {[%clk 0:00:03.1]} 47... Rf2 {[%clk 0:00:03.6]} 48. Bd3 {[%clk 0:00:03.7]}
48... Rd2+ {[%clk 0:00:04.1]} 49. Kc1 {[%clk 0:00:03.8]} 49... Rxh2 {[%clk
0:00:04.4]} 50. g4 {[%clk 0:00:03.8]} 50... h6 {[%clk 0:00:04.2]} 51. Kb1 {[%clk
0:00:03.5]} 51... Kf6 {[%clk 0:00:04.4]} 52. Re4 {[%clk 0:00:03.2]} 52... Nc6
{[%clk 0:00:04.8]} 53. Rc4 {[%clk 0:00:03.4]} 53... Rh1+ {[%clk 0:00:04.8]} 54.
Ka2 {[%clk 0:00:03.4]} 54... Nb4+ {[%clk 0:00:05.5]} 55. Rxb4 {[%clk 0:00:02.8]}
55... axb4 {[%clk 0:00:06.4]} 56. a5 {[%clk 0:00:03.5]} 56... Re1 {[%clk
0:00:06.5]} 57. a6 {[%clk 0:00:03.5]} 57... Re5 {[%clk 0:00:06.6]} 58. Bf5
{[%clk 0:00:00.9]} 58... Ra5+ {[%clk 0:00:06.8]} 59. Kb1 {[%clk 0:00:01.4]}
59... Rxa6 {[%clk 0:00:07.4]} 60. Kc1 {[%clk 0:00:02.3]} 60... Rd6 {[%clk
0:00:07.8]} 61. Be4 {[%clk 0:00:02.1]} 61... Rd4 {[%clk 0:00:08.7]} 62. Bf3
{[%clk 0:00:02.2]} 62... Kg5 {[%clk 0:00:09.3]} 63. Be2 {[%clk 0:00:02.8]} 63...
Kf4 {[%clk 0:00:09.8]} 64. Bc4 {[%clk 0:00:02.9]} 64... Kxg4 {[%clk 0:00:09.8]}
0-1

[Event "Late-Titled-Tuesday-Blitz-May-07-2024"]
[Site "Chess.com"]
[Date "2024.05.07"]
[Round "2"]
[White "MiguelBestard1981"]
[Black "zverr1"]
[Result "0-1"]
[WhiteElo "2184"]
[BlackElo "2503"]
[TimeControl "180+1"]
[EndTime "14:18:50 PDT"]
[Termination "zverr1 won on time"]

1. d4 {[%clk 0:02:57.1]} 1... d5 {[%clk 0:03:00.1]} 2. Bf4 {[%clk 0:02:55.8]}
2... Nf6 {[%clk 0:02:58.2]} 3. e3 {[%clk 0:02:55.9]} 3... e6 {[%clk 0:02:58.3]}
4. Nd2 {[%clk 0:02:55.8]} 4... Bd6 {[%clk 0:02:56.6]} 5. Bxd6 {[%clk 0:02:55.6]}
5... Qxd6 {[%clk 0:02:55]} 6. f4 {[%clk 0:02:54.1]} 6... O-O {[%clk 0:02:53.7]}
7. Bd3 {[%clk 0:02:53.6]} 7... c5 {[%clk 0:02:54.4]} 8. c3 {[%clk 0:02:52.5]}
8... cxd4 {[%clk 0:02:51.9]} 9. cxd4 {[%clk 0:02:53.4]} 9... Nc6 {[%clk
0:02:51.1]} 10. a3 {[%clk 0:02:53.5]} 10... Bd7 {[%clk 0:02:43.4]} 11. Ngf3
{[%clk 0:02:53.1]} 11... Ng4 {[%clk 0:02:43.5]} 12. Qe2 {[%clk 0:02:52.1]} 12...
f5 {[%clk 0:02:43.5]} 13. O-O {[%clk 0:02:49]} 13... Be8 {[%clk 0:02:42.9]} 14.
Ne5 {[%clk 0:02:49]} 14... Nf6 {[%clk 0:02:40.9]} 15. h3 {[%clk 0:02:45.2]}
15... Ne4 {[%clk 0:02:29]} 16. g4 {[%clk 0:02:43.5]} 16... Ne7 {[%clk
0:02:22.1]} 17. Bxe4 {[%clk 0:02:39.6]} 17... fxe4 {[%clk 0:02:17.8]} 18. Rfb1
{[%clk 0:02:37.3]} 18... Bd7 {[%clk 0:02:07.1]} 19. Rc1 {[%clk 0:02:34.7]} 19...
Rfc8 {[%clk 0:02:05.9]} 20. Qe1 {[%clk 0:02:32.2]} 20... Be8 {[%clk 0:01:58]}
21. Rxc8 {[%clk 0:02:19.6]} 21... Rxc8 {[%clk 0:01:57.2]} 22. Rc1 {[%clk
0:02:20.5]} 22... Rc7 {[%clk 0:01:44.9]} 23. Nb3 {[%clk 0:02:17.9]} 23... b6
{[%clk 0:01:38.8]} 24. Rxc7 {[%clk 0:02:15.2]} 24... Qxc7 {[%clk 0:01:38.5]} 25.
Qc1 {[%clk 0:02:16.1]} 25... Qxc1+ {[%clk 0:01:32.8]} 26. Nxc1 {[%clk 0:02:17]}
26... Ba4 {[%clk 0:01:31.4]} 27. b3 {[%clk 0:02:15.9]} 27... Bb5 {[%clk
0:01:29.7]} 28. Kf2 {[%clk 0:02:15.8]} 28... Kf8 {[%clk 0:01:26.8]} 29. Ke1
{[%clk 0:02:14.1]} 29... h6 {[%clk 0:01:24]} 30. Kd2 {[%clk 0:02:14.2]} 30... g5
{[%clk 0:01:22.5]} 31. Na2 {[%clk 0:02:13.2]} 31... Bf1 {[%clk 0:01:21.8]} 32.
Ke1 {[%clk 0:02:00.6]} 32... Bxh3 {[%clk 0:01:21.6]} 33. Kf2 {[%clk 0:02:01.2]}
33... Kg7 {[%clk 0:01:11]} 34. Nc3 {[%clk 0:01:53.3]} 34... gxf4 {[%clk
0:01:03.6]} 35. exf4 {[%clk 0:01:52.2]} 35... Ng6 {[%clk 0:00:44.8]} 36. Nxg6
{[%clk 0:01:49.4]} 36... Kxg6 {[%clk 0:00:45.1]} 37. Kg3 {[%clk 0:01:49.2]}
37... Bf1 {[%clk 0:00:44.7]} 38. Nd1 {[%clk 0:01:45.2]} 38... Bd3 {[%clk
0:00:38.8]} 39. Ne3 {[%clk 0:01:41.4]} 39... a5 {[%clk 0:00:37.7]} 40. b4 {[%clk
0:01:40.5]} 40... Be2 {[%clk 0:00:34.7]} 41. Kf2 {[%clk 0:01:21.1]} 41... Bc4
{[%clk 0:00:32.6]} 42. bxa5 {[%clk 0:01:19.8]} 42... bxa5 {[%clk 0:00:32.6]} 43.
Kg3 {[%clk 0:00:49]} 43... Bb3 {[%clk 0:00:32.8]} 44. Kh4 {[%clk 0:00:44.2]}
44... Ba4 {[%clk 0:00:31.1]} 45. f5+ {[%clk 0:00:27.8]} 45... exf5 {[%clk
0:00:22.5]} 46. gxf5+ {[%clk 0:00:28.7]} 46... Kf6 {[%clk 0:00:23.1]} 47. Kh5
{[%clk 0:00:22.2]} 47... Bd7 {[%clk 0:00:22]} 48. Kxh6 {[%clk 0:00:16.3]} 48...
Bxf5 {[%clk 0:00:22.2]} 49. Nxd5+ {[%clk 0:00:16.1]} 49... Ke6 {[%clk
0:00:20.6]} 50. Ne3 {[%clk 0:00:16.2]} 50... Kf6 {[%clk 0:00:18.2]} 51. Kh5
{[%clk 0:00:14.3]} 51... Bd7 {[%clk 0:00:15.8]} 52. Kh4 {[%clk 0:00:14]} 52...
Be8 {[%clk 0:00:09.8]} 53. Kg4 {[%clk 0:00:13.7]} 53... Bb5 {[%clk 0:00:05.4]}
54. Kf4 {[%clk 0:00:13.5]} 54... Bd3 {[%clk 0:00:06.2]} 55. Nf1 {[%clk
0:00:11.9]} 55... Ke6 {[%clk 0:00:06.5]} 56. Ng3 {[%clk 0:00:11.1]} 56... Kd5
{[%clk 0:00:06.6]} 57. Ke3 {[%clk 0:00:09.3]} 57... Bb1 {[%clk 0:00:06.1]} 58.
Ne2 {[%clk 0:00:07.9]} 58... Kc4 {[%clk 0:00:06]} 59. Ng3 {[%clk 0:00:05.8]}
59... Kb3 {[%clk 0:00:03.3]} 60. Nxe4 {[%clk 0:00:00.6]} 60... Kxa3 {[%clk
0:00:03.9]} 0-1

[Event "Late-Titled-Tuesday-Blitz-May-07-2024"]
[Site "Chess.com"]
[Date "2024.05.07"]
[Round "2"]
[White "lamomiajunior"]
[Black "Dzidzik2203"]
[Result "1-0"]
[WhiteElo "2773"]
[BlackElo "2437"]
[TimeControl "180+1"]
[EndTime "14:18:58 PDT"]
[Termination "lamomiajunior won by resignation"]

1. d4 {[%clk 0:03:00.9]} 1... Nf6 {[%clk 0:02:58.5]} 2. Nc3 {[%clk 0:03:01]}
2... d5 {[%clk 0:02:57.2]} 3. Bf4 {[%clk 0:03:01.5]} 3... e6 {[%clk 0:02:50.6]}
4. Nb5 {[%clk 0:03:01]} 4... Na6 {[%clk 0:02:48.7]} 5. e3 {[%clk 0:03:01.4]}
5... c6 {[%clk 0:02:49]} 6. Nc3 {[%clk 0:03:01.9]} 6... Bb4 {[%clk 0:02:47.1]}
7. Bxa6 {[%clk 0:03:01.1]} 7... bxa6 {[%clk 0:02:41.7]} 8. Nf3 {[%clk
0:03:01.3]} 8... a5 {[%clk 0:02:40.9]} 9. O-O {[%clk 0:03:00.6]} 9... Ba6 {[%clk
0:02:41]} 10. Re1 {[%clk 0:03:01.1]} 10... Bxc3 {[%clk 0:02:35.9]} 11. bxc3
{[%clk 0:03:01]} 11... Ne4 {[%clk 0:02:36.5]} 12. Ne5 {[%clk 0:03:01]} 12... O-O
{[%clk 0:02:27.3]} 13. Nxc6 {[%clk 0:02:54.5]} 13... Qb6 {[%clk 0:02:25.1]} 14.
Ne5 {[%clk 0:02:50.6]} 14... Rfc8 {[%clk 0:02:05.3]} 15. Qg4 {[%clk 0:02:42]}
15... f6 {[%clk 0:01:47.5]} 16. f3 {[%clk 0:02:12]} 16... Nxc3 {[%clk
0:01:40.4]} 17. Nd7 {[%clk 0:02:10]} 17... Qd8 {[%clk 0:01:32.7]} 18. Qxe6+
{[%clk 0:02:09.2]} 18... Kh8 {[%clk 0:01:33.3]} 19. Nc5 {[%clk 0:01:58.5]} 19...
Bc4 {[%clk 0:01:29.3]} 20. Kh1 {[%clk 0:01:54.2]} 20... Qe8 {[%clk 0:01:18]} 21.
Qh3 {[%clk 0:01:38]} 21... Na4 {[%clk 0:01:07.2]} 22. Nxa4 {[%clk 0:01:30.4]}
22... Qxa4 {[%clk 0:01:08.1]} 23. e4 {[%clk 0:01:28]} 23... Qxc2 {[%clk
0:01:06.9]} 24. e5 {[%clk 0:01:27.9]} 24... Qg6 {[%clk 0:00:57.8]} 25. e6 {[%clk
0:01:26.2]} 25... Re8 {[%clk 0:00:55]} 26. e7 {[%clk 0:01:21.3]} 26... h6 {[%clk
0:00:44.6]} 27. Bd6 {[%clk 0:01:20.3]} 27... a4 {[%clk 0:00:43.7]} 28. a3 {[%clk
0:01:18.4]} 28... Rac8 {[%clk 0:00:39.9]} 29. Rac1 {[%clk 0:01:16.4]} 29... Kh7
{[%clk 0:00:39.2]} 30. Qd7 {[%clk 0:01:14.3]} 30... Qg5 {[%clk 0:00:24.6]} 31.
Qxa7 {[%clk 0:01:08.8]} 31... Bf1 {[%clk 0:00:22.4]} 32. Rxf1 {[%clk 0:00:56.4]}
32... Rxc1 {[%clk 0:00:22.2]} 33. Qa6 {[%clk 0:00:55.5]} 33... Qd2 {[%clk
0:00:20.5]} 34. h3 {[%clk 0:00:31.6]} 34... Rc2 {[%clk 0:00:16.2]} 35. Rg1
{[%clk 0:00:28.2]} 35... Qxd4 {[%clk 0:00:16.6]} 36. Bb4 {[%clk 0:00:26.7]}
36... Rcc8 {[%clk 0:00:15.9]} 37. Qe6 {[%clk 0:00:23.8]} 37... Qc4 {[%clk
0:00:14.5]} 38. Re1 {[%clk 0:00:23.4]} 38... d4 {[%clk 0:00:14.6]} 39. Qf5+
{[%clk 0:00:23.8]} 39... Kg8 {[%clk 0:00:14.3]} 40. Rd1 {[%clk 0:00:24]} 40...
Rc7 {[%clk 0:00:11.9]} 41. Qe4 {[%clk 0:00:22.4]} 41... d3 {[%clk 0:00:10.5]}
42. Qe3 {[%clk 0:00:17]} 42... Kf7 {[%clk 0:00:07.5]} 43. Rxd3 {[%clk
0:00:14.6]} 43... Rcxe7 {[%clk 0:00:07.9]} 44. Bxe7 {[%clk 0:00:14.4]} 44...
Rxe7 {[%clk 0:00:08.8]} 45. Qd2 {[%clk 0:00:14.8]} 45... Kg8 {[%clk 0:00:06.9]}
46. Rd8+ {[%clk 0:00:14.3]} 46... Kh7 {[%clk 0:00:07.2]} 47. Rd4 {[%clk
0:00:14.5]} 47... Qe2 {[%clk 0:00:07.2]} 48. Qxe2 {[%clk 0:00:13.8]} 48... Rxe2
{[%clk 0:00:08.1]} 49. Rxa4 {[%clk 0:00:14.6]} 49... Ra2 {[%clk 0:00:08.8]} 50.
Kh2 {[%clk 0:00:14.9]} 50... Kg6 {[%clk 0:00:09.4]} 51. Kg3 {[%clk 0:00:15.6]}
51... h5 {[%clk 0:00:09.9]} 52. h4 {[%clk 0:00:15]} 52... Kf7 {[%clk 0:00:09.7]}
53. Ra5 {[%clk 0:00:15.6]} 53... Kg6 {[%clk 0:00:09.6]} 54. Kh3 {[%clk
0:00:15.6]} 54... Rb2 {[%clk 0:00:10]} 55. a4 {[%clk 0:00:13.6]} 55... Ra2
{[%clk 0:00:10.2]} 56. Kh2 {[%clk 0:00:14]} 56... Rb2 {[%clk 0:00:10.7]} 57. Ra7
{[%clk 0:00:13.6]} 57... Ra2 {[%clk 0:00:11.1]} 58. a5 {[%clk 0:00:13.9]} 58...
Rb2 {[%clk 0:00:11.4]} 59. a6 {[%clk 0:00:14.5]} 59... Ra2 {[%clk 0:00:12.1]}
60. Kg3 {[%clk 0:00:14.1]} 60... Ra3 {[%clk 0:00:11.7]} 61. Kf2 {[%clk
0:00:13.7]} 61... Ra2+ {[%clk 0:00:12]} 62. Kf1 {[%clk 0:00:14]} 62... Rb2
{[%clk 0:00:11.7]} 63. Rb7 {[%clk 0:00:11.7]} 63... Ra2 {[%clk 0:00:12.2]} 64.
a7 {[%clk 0:00:12.3]} 64... Kh6 {[%clk 0:00:12.5]} 65. Ke1 {[%clk 0:00:11]}
65... Kg6 {[%clk 0:00:13]} 66. Kd1 {[%clk 0:00:11.2]} 66... Ra5 {[%clk
0:00:12.4]} 67. Kc2 {[%clk 0:00:11.4]} 67... Ra1 {[%clk 0:00:12.1]} 68. Kd3
{[%clk 0:00:11]} 68... Ra3+ {[%clk 0:00:12.3]} 69. Kc4 {[%clk 0:00:11.3]} 69...
Ra1 {[%clk 0:00:12.2]} 70. Kd5 {[%clk 0:00:11.7]} 70... Rd1+ {[%clk 0:00:12.5]}
71. Kc6 {[%clk 0:00:11.9]} 71... Ra1 {[%clk 0:00:13.4]} 72. Kc7 {[%clk 0:00:12]}
1-0

[Event "Late-Titled-Tuesday-Blitz-May-07-2024"]
[Site "Chess.com"]
[Date "2024.05.07"]
[Round "2"]
[White "WPWPWP-2015"]
[Black "SchmakAttack"]
[Result "0-1"]
[WhiteElo "2444"]
[BlackElo "2778"]
[TimeControl "180+1"]
[EndTime "14:19:06 PDT"]
[Termination "SchmakAttack won by resignation"]

1. e4 {[%clk 0:03:00.9]} 1... c5 {[%clk 0:02:59.5]} 2. Nf3 {[%clk 0:02:59.5]}
2... Nc6 {[%clk 0:02:59.8]} 3. Bb5 {[%clk 0:02:59]} 3... Nf6 {[%clk 0:02:59.8]}
4. Nc3 {[%clk 0:02:58.2]} 4... Qc7 {[%clk 0:02:58.1]} 5. O-O {[%clk 0:02:57.6]}
5... e5 {[%clk 0:02:53.4]} 6. Re1 {[%clk 0:02:54.5]} 6... d6 {[%clk 0:02:35.1]}
7. h3 {[%clk 0:02:54.2]} 7... Be7 {[%clk 0:02:29.6]} 8. a4 {[%clk 0:02:48.9]}
8... O-O {[%clk 0:02:28.6]} 9. d3 {[%clk 0:02:48.6]} 9... h6 {[%clk 0:02:26.5]}
10. Bc4 {[%clk 0:02:46.6]} 10... Be6 {[%clk 0:02:21.5]} 11. Be3 {[%clk
0:02:45.9]} 11... Nd4 {[%clk 0:02:16.8]} 12. b3 {[%clk 0:02:43.9]} 12... a6
{[%clk 0:02:08.6]} 13. Bd2 {[%clk 0:02:22.3]} 13... Rfe8 {[%clk 0:01:56.1]} 14.
Nh2 {[%clk 0:02:16.9]} 14... Rad8 {[%clk 0:01:52.7]} 15. f4 {[%clk 0:02:05.8]}
15... exf4 {[%clk 0:01:47]} 16. Bxf4 {[%clk 0:02:04.8]} 16... Qd7 {[%clk
0:01:37.6]} 17. Nf3 {[%clk 0:01:38.3]} 17... Nc6 {[%clk 0:01:36.8]} 18. Bxe6
{[%clk 0:01:19.3]} 18... Qxe6 {[%clk 0:01:25.2]} 19. Qd2 {[%clk 0:01:07.9]}
19... Qd7 {[%clk 0:01:19.9]} 20. Re2 {[%clk 0:01:04.5]} 20... Bf8 {[%clk
0:01:03.4]} 21. Rae1 {[%clk 0:01:03.3]} 21... Nd4 {[%clk 0:00:53.5]} 22. Nxd4
{[%clk 0:00:55.1]} 22... cxd4 {[%clk 0:00:54.4]} 23. Nd1 {[%clk 0:00:52.6]}
23... b5 {[%clk 0:00:54.3]} 24. axb5 {[%clk 0:00:51.2]} 24... axb5 {[%clk
0:00:55.2]} 25. Nf2 {[%clk 0:00:50.7]} 25... d5 {[%clk 0:00:46.9]} 26. e5 {[%clk
0:00:49]} 26... Nh5 {[%clk 0:00:46]} 27. Bh2 {[%clk 0:00:49.1]} 27... g6 {[%clk
0:00:36.7]} 28. Ng4 {[%clk 0:00:47.1]} 28... Kh7 {[%clk 0:00:36.9]} 29. Rf2
{[%clk 0:00:40.3]} 29... Bg7 {[%clk 0:00:36.2]} 30. Ref1 {[%clk 0:00:37.9]}
30... Re7 {[%clk 0:00:36.6]} 31. Qb4 {[%clk 0:00:33.7]} 31... Rde8 {[%clk
0:00:25.6]} 32. Qxd4 {[%clk 0:00:32.8]} 32... Qe6 {[%clk 0:00:23.1]} 33. Re2
{[%clk 0:00:25.2]} 33... Qc6 {[%clk 0:00:19.2]} 34. Qf2 {[%clk 0:00:19.3]} 34...
Rc8 {[%clk 0:00:18.7]} 35. d4 {[%clk 0:00:19.2]} 35... Qd7 {[%clk 0:00:17.2]}
36. Kh1 {[%clk 0:00:19]} 36... Qe8 {[%clk 0:00:14.7]} 37. Qf3 {[%clk 0:00:18]}
37... Qd7 {[%clk 0:00:14.6]} 38. Ref2 {[%clk 0:00:17.7]} 38... Qe6 {[%clk
0:00:13.5]} 39. Qd3 {[%clk 0:00:17.5]} 39... b4 {[%clk 0:00:13.3]} 40. Qd2
{[%clk 0:00:17]} 40... Rc3 {[%clk 0:00:10.6]} 41. Rf3 {[%clk 0:00:16.7]} 41...
Rec7 {[%clk 0:00:11]} 42. Rxc3 {[%clk 0:00:14.8]} 42... Rxc3 {[%clk 0:00:11.4]}
43. Qf2 {[%clk 0:00:12.4]} 43... Kg8 {[%clk 0:00:09.1]} 44. Re1 {[%clk
0:00:12.2]} 44... Qc6 {[%clk 0:00:09.1]} 45. Re2 {[%clk 0:00:12.2]} 45... Bf8
{[%clk 0:00:09]} 46. Rd2 {[%clk 0:00:11.1]} 46... Qe6 {[%clk 0:00:07.8]} 47. Bg1
{[%clk 0:00:06.9]} 47... Ng3+ {[%clk 0:00:07.3]} 48. Kh2 {[%clk 0:00:07.1]}
48... Ne4 {[%clk 0:00:08]} 49. Qe2 {[%clk 0:00:06.3]} 49... Nxd2 {[%clk
0:00:07.9]} 50. Qxd2 {[%clk 0:00:06.5]} 50... Bg7 {[%clk 0:00:07.7]} 51. Be3
{[%clk 0:00:03.5]} 51... Qf5 {[%clk 0:00:07.6]} 52. Bxh6 {[%clk 0:00:02.9]}
52... Rxc2 {[%clk 0:00:07.8]} 53. Qe3 {[%clk 0:00:02.6]} 53... Rc3 {[%clk
0:00:07.3]} 54. Qd2 {[%clk 0:00:02.7]} 54... Bh8 {[%clk 0:00:01.6]} 55. Bg5
{[%clk 0:00:02.1]} 55... Qe4 {[%clk 0:00:01.9]} 56. Nf6+ {[%clk 0:00:00.6]}
56... Bxf6 {[%clk 0:00:02.4]} 57. Bxf6 {[%clk 0:00:01.1]} 57... Rc2 {[%clk
0:00:03.1]} 58. Qg5 {[%clk 0:00:01.1]} 58... Re2 {[%clk 0:00:02.5]} 59. h4
{[%clk 0:00:01.3]} 59... Qf3 {[%clk 0:00:02.6]} 60. h5 {[%clk 0:00:01.5]} 60...
Qxh5+ {[%clk 0:00:02.2]} 61. Qxh5 {[%clk 0:00:01.8]} 61... gxh5 {[%clk
0:00:03.1]} 62. Kg3 {[%clk 0:00:02.1]} 62... Rb2 {[%clk 0:00:03.7]} 63. Be7
{[%clk 0:00:02.3]} 63... Rxb3+ {[%clk 0:00:04.6]} 64. Kh4 {[%clk 0:00:02.8]}
64... Rb1 {[%clk 0:00:04.9]} 65. Kxh5 {[%clk 0:00:02.7]} 65... b3 {[%clk
0:00:05.5]} 66. Ba3 {[%clk 0:00:01.7]} 66... b2 {[%clk 0:00:05.8]} 67. Kg4
{[%clk 0:00:01.7]} 67... Kg7 {[%clk 0:00:06.4]} 68. Kg3 {[%clk 0:00:01.8]} 68...
Kg6 {[%clk 0:00:06.9]} 69. Kf2 {[%clk 0:00:02.1]} 69... Kf5 {[%clk 0:00:06.9]}
70. e6 {[%clk 0:00:01.8]} 70... fxe6 {[%clk 0:00:06.6]} 71. Ke2 {[%clk
0:00:01.8]} 71... Rg1 {[%clk 0:00:06.7]} 72. Bxb2 {[%clk 0:00:01.8]} 72... Rxg2+
{[%clk 0:00:07.3]} 73. Kf3 {[%clk 0:00:02]} 73... Rxb2 {[%clk 0:00:08.2]} 0-1

[Event "Late-Titled-Tuesday-Blitz-May-07-2024"]
[Site "Chess.com"]
[Date "2024.05.07"]
[Round "2"]
[White "Hrant_ChessMood"]
[Black "Cipy77"]
[Result "0-1"]
[WhiteElo "2955"]
[BlackElo "2646"]
[TimeControl "180+1"]
[EndTime "14:19:08 PDT"]
[Termination "Cipy77 won on time"]

1. Nf3 {[%clk 0:02:58.7]} 1... d5 {[%clk 0:02:59.1]} 2. g3 {[%clk 0:02:55.1]}
2... Nf6 {[%clk 0:02:58.4]} 3. Bg2 {[%clk 0:02:55.2]} 3... Bg4 {[%clk
0:02:58.5]} 4. c4 {[%clk 0:02:52.7]} 4... c6 {[%clk 0:02:55]} 5. Qb3 {[%clk
0:02:52.5]} 5... Qb6 {[%clk 0:02:54.2]} 6. d3 {[%clk 0:02:52.9]} 6... e6 {[%clk
0:02:52]} 7. Be3 {[%clk 0:02:49.9]} 7... Qxb3 {[%clk 0:02:51.7]} 8. axb3 {[%clk
0:02:50.8]} 8... a6 {[%clk 0:02:51.5]} 9. Nc3 {[%clk 0:02:45]} 9... Nbd7 {[%clk
0:02:50.1]} 10. h3 {[%clk 0:02:37.5]} 10... Bxf3 {[%clk 0:02:49.4]} 11. Bxf3
{[%clk 0:02:37.1]} 11... Bd6 {[%clk 0:02:48.1]} 12. O-O {[%clk 0:02:25.2]} 12...
O-O {[%clk 0:02:45.2]} 13. Rfc1 {[%clk 0:02:23.1]} 13... Rac8 {[%clk 0:02:42.9]}
14. d4 {[%clk 0:02:06.8]} 14... Rfe8 {[%clk 0:02:36.7]} 15. Bg2 {[%clk
0:02:01.5]} 15... h6 {[%clk 0:02:18.7]} 16. c5 {[%clk 0:01:56.7]} 16... Bc7
{[%clk 0:02:17.5]} 17. f4 {[%clk 0:01:57.3]} 17... Nh5 {[%clk 0:02:16.8]} 18.
Bf2 {[%clk 0:01:48]} 18... g6 {[%clk 0:02:07.7]} 19. e3 {[%clk 0:01:47]} 19...
f5 {[%clk 0:01:58.7]} 20. g4 {[%clk 0:01:44.8]} 20... Nhf6 {[%clk 0:01:56.6]}
21. Bf3 {[%clk 0:01:45.3]} 21... Ne4 {[%clk 0:01:54.7]} 22. Be1 {[%clk
0:01:23.4]} 22... Ndf6 {[%clk 0:01:51.2]} 23. Rc2 {[%clk 0:01:23.5]} 23... Kf7
{[%clk 0:01:48.8]} 24. Rg2 {[%clk 0:01:23.3]} 24... Rg8 {[%clk 0:01:48]} 25.
Nxe4 {[%clk 0:01:08.4]} 25... dxe4 {[%clk 0:01:44.1]} 26. Be2 {[%clk 0:01:06.6]}
26... Nd5 {[%clk 0:01:44.6]} 27. Bd2 {[%clk 0:01:05.1]} 27... Ke7 {[%clk
0:01:39.6]} 28. Kf2 {[%clk 0:01:05.1]} 28... Rcf8 {[%clk 0:01:36.6]} 29. Rag1
{[%clk 0:01:02.6]} 29... fxg4 {[%clk 0:01:23.4]} 30. Rxg4 {[%clk 0:01:00.7]}
30... Rf6 {[%clk 0:00:57.3]} 31. Ke1 {[%clk 0:00:59.6]} 31... Kf7 {[%clk
0:00:33.3]} 32. Bd1 {[%clk 0:00:59.5]} 32... Rf5 {[%clk 0:00:31.5]} 33. Bc2
{[%clk 0:00:55.5]} 33... Nf6 {[%clk 0:00:31.7]} 34. R4g2 {[%clk 0:00:28.2]}
34... Rh5 {[%clk 0:00:30.6]} 35. Rh1 {[%clk 0:00:28.6]} 35... g5 {[%clk
0:00:30]} 36. fxg5 {[%clk 0:00:23.6]} 36... hxg5 {[%clk 0:00:28.7]} 37. Rgg1
{[%clk 0:00:11.7]} 37... Rgh8 {[%clk 0:00:26.1]} 38. Kf1 {[%clk 0:00:10]} 38...
g4 {[%clk 0:00:22]} 39. Rg2 {[%clk 0:00:08.2]} 39... Rxh3 {[%clk 0:00:18.6]} 40.
Rhg1 {[%clk 0:00:08.3]} 40... Rf3+ {[%clk 0:00:18.7]} 41. Ke1 {[%clk 0:00:07.2]}
41... g3 {[%clk 0:00:19.3]} 42. Ke2 {[%clk 0:00:04.7]} 42... Rh2 {[%clk
0:00:17.8]} 43. Be1 {[%clk 0:00:04]} 43... Ng4 {[%clk 0:00:14.6]} 44. Bd2 {[%clk
0:00:04.6]} 44... Rf2+ {[%clk 0:00:14.1]} 45. Rxf2+ {[%clk 0:00:04.6]} 45...
Rxf2+ {[%clk 0:00:14.9]} 46. Ke1 {[%clk 0:00:04]} 46... Nxe3 {[%clk 0:00:14.7]}
47. Bxe4 {[%clk 0:00:02.8]} 47... Nf5 {[%clk 0:00:14.6]} 48. Kd1 {[%clk
0:00:01.8]} 48... Nxd4 {[%clk 0:00:14.2]} 49. Be3 {[%clk 0:00:01.6]} 49... Re2
{[%clk 0:00:08.9]} 50. Bxd4 {[%clk 0:00:01.5]} 50... Rxe4 {[%clk 0:00:08.2]} 51.
Bc3 {[%clk 0:00:02.1]} 51... Rg4 {[%clk 0:00:08.2]} 52. Ke2 {[%clk 0:00:02.5]}
52... Bf4 {[%clk 0:00:06.7]} 53. Kf3 {[%clk 0:00:03]} 53... Rh4 {[%clk
0:00:06.1]} 54. Rd1 {[%clk 0:00:02.2]} 54... Kg6 {[%clk 0:00:06.1]} 55. Rd8
{[%clk 0:00:02]} 55... e5 {[%clk 0:00:04.4]} 56. Rg8+ {[%clk 0:00:02.1]} 56...
Kf7 {[%clk 0:00:04.8]} 57. Rd8 {[%clk 0:00:01.8]} 57... Rh1 {[%clk 0:00:05.2]}
58. Rd7+ {[%clk 0:00:02]} 58... Ke6 {[%clk 0:00:03.3]} 59. Rg7 {[%clk 0:00:02]}
59... Rf1+ {[%clk 0:00:04.1]} 60. Ke4 {[%clk 0:00:02.2]} 60... Rf2 {[%clk
0:00:04.4]} 61. Rg6+ {[%clk 0:00:02.3]} 61... Kf7 {[%clk 0:00:05]} 62. Rg4
{[%clk 0:00:03.2]} 62... Re2+ {[%clk 0:00:05.3]} 63. Kf5 {[%clk 0:00:02.9]}
63... g2 {[%clk 0:00:04.4]} 64. Bb4 {[%clk 0:00:00.8]} 64... Bh2 {[%clk
0:00:03.7]} 65. Bc3 {[%clk 0:00:00.7]} 65... g1=Q {[%clk 0:00:04.6]} 0-1